bitfinex/quotes_SOLUSD_20230116
["timestamp","ask_amount","ask_price","bid_price","bid_amount"]
[1673901749447,20.0,23.633,23.615,38.46196354]
[1673901749671,20.0,23.633,23.616,20.0]
[1673901749889,20.0,23.633,23.617,17.0]
[1673901750083,20.0,23.633,23.618,20.0]
[1673901750292,20.0,23.633,23.619,17.0]
[1673901750504,20.0,23.633,23.62,20.0]
[1673901751776,20.0,23.637,23.622,20.0]
[1673901752392,20.0,23.637,23.623,17.0]
[1673901752611,20.0,23.639,23.623,17.0]
[1673901752819,20.0,23.64,23.623,17.0]
[1673901753027,20.0,23.639,23.623,17.0]
[1673901753658,20.0,23.639,23.613,108.5263]
[1673901753866,20.0,23.637,23.614,20.0]
[1673901754087,48.76,23.636,23.614,20.0]
[1673901754299,20.0,23.635,23.613,108.5263]
[1673901754609,20.0,23.633,23.613,108.5263]
[1673901754819,40.0,23.633,23.614,20.0]
[1673901755031,40.0,23.633,23.613,108.5263]
[1673901755032,37.0,23.632,23.613,108.5263]
[1673901755256,20.0,23.631,23.614,20.0]
[1673901755438,20.0,23.632,23.614,20.0]
[1673901756281,20.0,23.632,23.616,20.0]
[1673901756488,20.0,23.632,23.616,19.5]
[1673901757136,20.0,23.632,23.62,16.29]
[1673901757353,111.9109,23.647,23.62,16.29]
[1673901757354,51.75,23.639,23.62,16.29]
[1673901757754,20.0,23.638,23.62,16.29]
[1673901758089,20.0,23.637,23.62,16.29]
[1673901758278,20.0,23.636,23.62,16.29]
[1673901758493,20.0,23.635,23.62,16.29]
[1673901759325,20.0,23.635,23.621,17.0]
[1673901759539,20.0,23.636,23.621,17.0]
[1673901759762,20.0,23.637,23.621,17.0]
[1673901759982,20.0,23.636,23.62,16.29]
[1673901761028,20.0,23.637,23.621,17.0]
[1673901761244,20.0,23.638,23.621,17.0]
[1673901761433,20.0,23.637,23.621,17.0]
[1673901763764,20.0,23.636,23.621,17.0]
[1673901765763,20.0,23.634,23.613,108.5263]
[1673901765948,37.0,23.633,23.613,108.5263]
[1673901766367,20.0,23.632,23.613,108.5263]
[1673901767006,48.76,23.631,23.61,16.15]
[1673901767215,20.0,23.629,23.61,16.15]
[1673901767428,48.77,23.628,23.61,16.15]
[1673901767636,20.0,23.626,23.61,16.15]
[1673901767854,37.0,23.625,23.61,16.15]
[1673901768059,20.0,23.624,23.61,16.15]
[1673901768267,20.0,23.623,23.61,16.15]
[1673901768601,20.0,23.623,23.606,112.4849]
[1673901768785,20.0,23.622,23.606,112.4849]
[1673901769889,20.0,23.622,23.607,17.0]
[1673901771346,20.0,23.622,23.606,112.4849]
[1673901774200,17.0,23.621,23.606,112.4849]
[1673901774723,20.0,23.62,23.606,112.4849]
[1673901774919,20.0,23.618,23.6,16.2]
[1673901775134,20.0,23.618,23.601,37.0]
[1673901775332,20.0,23.618,23.602,20.0]
[1673901775770,20.0,23.62,23.602,20.0]
[1673901775973,17.0,23.619,23.602,20.0]
[1673901776184,17.0,23.621,23.602,20.0]
[1673901777557,51.77,23.623,23.602,20.0]
[1673901777762,20.0,23.623,23.604,20.0]
[1673901778075,20.0,23.627,23.605,17.0]
[1673901778292,109.3771,23.631,23.61,16.29]
[1673901778487,109.3771,23.631,23.611,20.0]
[1673901778810,109.3771,23.631,23.613,20.0]
[1673901779010,109.3771,23.631,23.614,17.0]
[1673901779227,109.3771,23.631,23.614,38.46196354]
[1673901779431,109.3771,23.631,23.615,41.46196354]
[1673901779855,116.1721,23.634,23.616,21.46196354]
[1673901780181,20.0,23.633,23.616,21.46196354]
[1673901780593,20.0,23.633,23.617,17.0]
[1673901781019,20.0,23.633,23.618,21.46196354]
[1673901781747,20.0,23.632,23.618,21.46196354]
[1673901781959,17.0,23.631,23.618,21.46196354]
[1673901782485,20.0,23.632,23.618,21.46196354]
[1673901783658,40.0,23.633,23.618,21.46196354]
[1673901784394,20.0,23.632,23.618,21.46196354]
[1673901785025,20.0,23.63,23.618,21.46196354]
[1673901785635,20.0,23.628,23.611,129.0069]
[1673901785845,20.0,23.628,23.612,21.46196354]
[1673901786062,20.0,23.63,23.613,20.0]
[1673901786271,17.0,23.629,23.613,20.0]
[1673901786583,20.0,23.63,23.614,21.46196354]
[1673901788390,20.0,23.63,23.612,20.0]
[1673901788703,414.3,23.646,23.62,16.29]
[1673901788704,20.0,23.633,23.62,16.29]
[1673901789106,20.0,23.633,23.621,21.46196354]
[1673901790166,17.0,23.632,23.613,17.0]
[1673901790381,17.0,23.632,23.617,21.46196354]
[1673901790581,20.0,23.631,23.617,21.46196354]
[1673901790908,17.0,23.63,23.613,21.46196354]
[1673901791125,20.0,23.631,23.613,21.46196354]
[1673901791315,20.0,23.633,23.613,21.46196354]
[1673901791537,20.0,23.637,23.62,16.29]
[1673901791752,20.0,23.637,23.621,17.0]
[1673901791965,20.0,23.637,23.621,38.46196354]
[1673901792190,20.0,23.637,23.622,21.46196354]
[1673901792390,20.0,23.637,23.621,17.0]
[1673901792715,20.0,23.637,23.622,21.46196354]
[1673901795331,20.0,23.638,23.623,17.0]
[1673901795544,20.0,23.637,23.623,17.0]
[1673901795753,20.0,23.638,23.623,17.0]
[1673901795967,20.0,23.639,23.624,20.0]
[1673901796178,51.75,23.641,23.625,17.0]
[1673901796373,20.0,23.641,23.625,21.46196354]
[1673901796588,20.0,23.64,23.626,17.0]
[1673901796903,20.0,23.639,23.626,17.0]
[1673901797110,20.0,23.639,23.626,38.46196354]
[1673901798790,20.0,23.639,23.62,16.29]
[1673901799042,17.0,23.638,23.623,21.46196354]
[1673901799233,71.75,23.637,23.623,21.46196354]
[1673901799941,20.0,23.635,23.613,20.0]
[1673901800153,20.0,23.634,23.62,16.29]
[1673901800383,20.0,23.637,23.62,16.29]
[1673901800694,20.0,23.655,23.621,58.46196354]
[1673901800695,51.74,23.645,23.621,58.46196354]
[1673901800910,51.75,23.642,23.621,21.46196354]
[1673901801111,4.88224,23.641,23.611,109.0069]
[1673901801437,20.0,23.639,23.611,109.0069]
[1673901801657,31.75,23.638,23.611,109.0069]
[1673901801966,37.0,23.637,23.611,109.0069]
[1673901802159,51.76,23.636,23.611,109.0069]
[1673901802357,20.0,23.634,23.612,17.0]
[1673901802568,48.76,23.633,23.612,17.0]
[1673901802804,20.0,23.632,23.612,17.0]
[1673901803012,20.0,23.631,23.612,38.46196354]
[1673901804273,20.0,23.631,23.612,21.46196354]
[1673901804483,17.0,23.63,23.612,21.46196354]
[1673901804801,20.0,23.629,23.612,21.46196354]
[1673901807427,17.0,23.628,23.612,21.46196354]
[1673901807852,40.0,23.627,23.611,109.0069]
[1673901808055,17.0,23.626,23.608,21.46196354]
[1673901808388,20.0,23.624,23.612,21.46196354]
[1673901808594,20.0,23.623,23.612,21.46196354]
[1673901808812,20.0,23.623,23.603,20.0]
[1673901809014,20.0,23.623,23.61,16.29]
[1673901809338,20.0,23.622,23.611,21.46196354]
[1673901809552,20.0,23.623,23.611,21.46196354]
[1673901810301,20.0,23.624,23.611,21.46196354]
[1673901810499,20.0,23.623,23.611,21.46196354]
[1673901810699,20.0,23.623,23.602,119.3103]
[1673901810896,20.0,23.623,23.603,17.0]
[1673901811108,17.0,23.622,23.604,21.46196354]
[1673901811439,20.0,23.621,23.604,21.46196354]
[1673901811633,17.0,23.62,23.604,21.46196354]
[1673901811837,20.0,23.619,23.604,21.46196354]
[1673901812805,20.0,23.622,23.605,20.0]
[1673901813009,20.0,23.623,23.605,37.0]
[1673901813220,24.88224,23.639,23.61,16.29]
[1673901813221,20.0,23.625,23.61,16.29]
[1673901813530,20.0,23.628,23.611,38.46196354]
[1673901813946,20.0,23.627,23.612,21.46196354]
[1673901814168,20.0,23.627,23.613,17.0]
[1673901814482,20.0,23.627,23.614,21.46196354]
[1673901814692,31.77,23.626,23.614,21.46196354]
[1673901814881,17.0,23.625,23.602,119.3103]
[1673901815093,51.77,23.624,23.602,119.3103]
[1673901815306,20.0,23.622,23.602,119.3103]
[1673901815645,68.78,23.621,23.603,20.0]
[1673901816265,20.0,23.62,23.602,119.3103]
[1673901816460,20.0,23.622,23.602,119.3103]
[1673901816665,51.78,23.621,23.602,119.3103]
[1673901817098,20.0,23.62,23.602,119.3103]
[1673901817425,51.78,23.619,23.602,119.3103]
[1673901817731,17.0,23.618,23.602,119.3103]
[1673901817956,20.0,23.617,23.602,119.3103]
[1673901818674,20.0,23.617,23.592,20.0]
[1673901819001,17.0,23.616,23.593,114.5696]
[1673901819218,20.0,23.614,23.596,20.0]
[1673901819535,37.0,23.613,23.593,114.5696]
[1673901819846,37.0,23.613,23.596,20.0]
[1673901820264,20.0,23.612,23.594,20.0]
[1673901820474,17.0,23.611,23.594,20.0]
[1673901820692,37.0,23.613,23.594,20.0]
[1673901822271,20.0,23.613,23.595,17.0]
[1673901822577,31.78,23.617,23.596,20.0]
[1673901822578,20.0,23.615,23.596,20.0]
[1673901822897,20.0,23.616,23.597,17.0]
[1673901823211,20.0,23.619,23.598,20.0]
[1673901823419,20.0,23.619,23.599,17.0]
[1673901823617,20.0,23.619,23.6,20.0]
[1673901823826,20.0,23.619,23.601,17.0]
[1673901824668,62.38878614,23.618,23.593,114.5696]
[1673901824872,4.88224,23.617,23.593,114.5696]
[1673901825083,20.0,23.615,23.593,114.5696]
[1673901825291,68.78,23.614,23.593,114.5696]
[1673901825503,37.0,23.614,23.593,114.5696]
[1673901825830,20.0,23.613,23.593,114.5696]
[1673901826047,17.0,23.612,23.593,114.5696]
[1673901826450,17.0,23.612,23.594,20.0]
[1673901826777,17.0,23.612,23.594,62.92392708]
[1673901826995,17.0,23.612,23.594,20.0]
[1673901827393,17.0,23.612,23.593,114.5696]
[1673901828674,17.0,23.612,23.59,16.15]
[1673901828868,21.88224,23.612,23.591,20.0]
[1673901829100,20.0,23.61,23.591,20.0]
[1673901829413,17.0,23.609,23.591,20.0]
[1673901829934,4.88224,23.611,23.592,21.46196354]
[1673901830151,20.0,23.614,23.594,20.0]
[1673901830459,20.0,23.614,23.592,21.46196354]
[1673901830651,40.26521991,23.613,23.592,21.46196354]
[1673901830860,40.0,23.612,23.592,21.46196354]
[1673901831289,40.26521991,23.611,23.592,21.46196354]
[1673901831500,17.0,23.611,23.592,21.46196354]
[1673901832142,65.14745991,23.61,23.591,20.0]
[1673901832328,65.14745991,23.61,23.585,142.3201]
[1673901832329,41.88224,23.609,23.585,110.5001]
[1673901832544,56.67224,23.608,23.585,110.5001]
[1673901832757,37.0,23.607,23.585,110.5001]
[1673901832964,31.8,23.606,23.586,20.0]
[1673901833194,20.0,23.607,23.59,16.29]
[1673901833393,20.0,23.607,23.591,17.0]
[1673901833601,20.0,23.607,23.591,38.46196354]
[1673901833923,20.0,23.607,23.592,21.46196354]
[1673901834960,20.0,23.613,23.592,21.46196354]
[1673901835176,20.0,23.612,23.593,37.0]
[1673901835402,20.0,23.612,23.594,20.0]
[1673901835599,20.0,23.612,23.595,17.0]
[1673901835811,51.78,23.614,23.595,17.0]
[1673901836134,20.0,23.613,23.59,16.29]
[1673901836348,20.0,23.612,23.595,21.46196354]
[1673901836556,20.0,23.611,23.595,21.46196354]
[1673901837089,20.0,23.611,23.591,17.0]
[1673901837301,20.0,23.611,23.592,21.46196354]
[1673901837513,20.0,23.611,23.593,37.0]
[1673901837702,20.0,23.612,23.593,37.0]
[1673901838035,20.0,23.612,23.595,20.0]
[1673901838249,20.0,23.612,23.596,17.0]
[1673901838434,20.0,23.614,23.596,38.46196354]
[1673901838637,51.78,23.614,23.597,21.46196354]
[1673901838850,20.0,23.613,23.597,21.46196354]
[1673901839071,20.0,23.612,23.597,21.46196354]
[1673901839609,20.0,23.611,23.597,21.46196354]
[1673901841080,20.0,23.611,23.585,142.3201]
[1673901841081,68.79,23.61,23.585,110.5001]
[1673901841480,20.0,23.609,23.585,110.5001]
[1673901841689,48.79,23.608,23.585,110.5001]
[1673901841900,20.0,23.606,23.586,20.0]
[1673901842111,108.3859,23.608,23.59,16.29]
[1673901842423,108.3859,23.608,23.591,20.0]
[1673901842647,108.3859,23.608,23.591,40.0]
[1673901842875,20.0,23.607,23.592,17.0]
[1673901843053,20.0,23.607,23.591,20.0]
[1673901844219,20.0,23.607,23.59,16.29]
[1673901844437,17.0,23.606,23.583,20.0]
[1673901844659,17.0,23.606,23.586,37.0]
[1673901844858,20.0,23.605,23.587,20.0]
[1673901845175,20.0,23.605,23.588,37.0]
[1673901845577,20.0,23.605,23.588,20.0]
[1673901845784,20.0,23.605,23.586,20.0]
[1673901846005,20.0,23.605,23.587,20.0]
[1673901846205,20.0,23.605,23.588,20.0]
[1673901846421,17.0,23.604,23.588,20.0]
[1673901846971,20.0,23.605,23.588,20.0]
[1673901847494,20.0,23.607,23.589,17.0]
[1673901847676,20.0,23.607,23.59,20.0]
[1673901848324,20.0,23.607,23.591,17.0]
[1673901848519,20.0,23.607,23.589,17.0]
[1673901848727,51.78,23.616,23.59,36.29]
[1673901848939,20.0,23.612,23.592,20.0]
[1673901849145,20.0,23.612,23.593,17.0]
[1673901849369,20.0,23.612,23.593,38.46196354]
[1673901849585,20.0,23.614,23.593,17.0]
[1673901849780,20.0,23.613,23.594,21.46196354]
[1673901849994,20.0,23.612,23.595,17.0]
[1673901850438,20.0,23.612,23.596,21.46196354]
[1673901850655,20.0,23.612,23.597,17.0]
[1673901851268,20.0,23.614,23.597,17.0]
[1673901851475,20.0,23.614,23.592,20.0]
[1673901851697,20.0,23.614,23.596,21.46196354]
[1673901852002,37.0,23.613,23.596,21.46196354]
[1673901852214,40.0,23.612,23.596,21.46196354]
[1673901853370,48.79,23.611,23.59,16.29]
[1673901853574,53.67224,23.611,23.591,20.0]
[1673901853895,20.0,23.61,23.591,20.0]
[1673901854114,20.0,23.608,23.591,20.0]
[1673901854306,17.0,23.607,23.591,20.0]
[1673901854741,20.0,23.605,23.585,110.5001]
[1673901855060,20.0,23.603,23.585,110.5001]
[1673901855377,17.0,23.602,23.585,110.5001]
[1673901856117,20.0,23.601,23.585,110.5001]
[1673901856932,10155.756519,23.6,23.585,110.5001]
[1673901857255,20.0,23.599,23.585,110.5001]
[1673901858850,20.0,23.599,23.58,16.29]
[1673901859036,20.0,23.597,23.581,20.0]
[1673901859363,20.0,23.597,23.581,41.46196354]
[1673901859583,20.0,23.597,23.582,21.46196354]
[1673901860733,20.0,23.595,23.576,112.8758]
[1673901860946,37.0,23.594,23.576,112.8758]
[1673901861479,20.0,23.593,23.576,112.8758]
[1673901861664,17.0,23.592,23.576,112.8758]
[1673901861879,20.0,23.591,23.576,112.8758]
[1673901862521,20.0,23.591,23.576,134.33776354]
[1673901863457,20.0,23.593,23.58,16.29]
[1673901864212,40.0,23.594,23.58,16.29]
[1673901864422,20.0,23.594,23.58,16.29]
[1673901864823,31.79,23.607,23.581,68.10226496]
[1673901865047,31.79,23.607,23.59,16.29]
[1673901866923,31.78,23.617,23.591,68.10226496]
[1673901867139,31.78,23.617,23.592,20.0]
[1673901867469,31.78,23.617,23.593,17.0]
[1673901867665,31.78,23.617,23.593,38.46196354]
[1673901868085,31.78,23.617,23.594,21.46196354]
[1673901870195,31.78,23.617,23.595,31.10226496]
[1673901870529,31.78,23.617,23.59,16.29]
[1673901870724,31.78,23.617,23.591,20.0]
[1673901871133,31.78,23.617,23.591,41.46196354]
[1673901871889,31.78,23.617,23.592,17.0]
[1673901872726,20.0,23.599,23.592,17.0]
[1673901873039,20.0,23.599,23.59,16.29]
[1673901873231,20.0,23.599,23.586,21.46196354]
[1673901875139,31.78,23.617,23.59,16.29]
[1673901875474,31.78,23.617,23.591,20.0]
[1673901875677,31.78,23.617,23.592,20.0]
[1673901875996,31.78,23.617,23.593,17.0]
[1673901876194,31.78,23.617,23.593,38.46196354]
[1673901876399,31.78,23.617,23.594,21.46196354]
[1673901876631,31.78,23.617,23.596,20.0]
[1673901876839,31.78,23.617,23.594,21.46196354]
[1673901877053,31.78,23.617,23.597,21.46196354]
[1673901877787,31.78,23.617,23.593,17.0]
[1673901877978,31.78,23.617,23.592,17.0]
[1673901878190,31.78,23.617,23.594,21.46196354]
[1673901878416,31.78,23.617,23.595,17.0]
[1673901878846,31.78,23.617,23.596,21.46196354]
[1673901879044,31.78,23.617,23.597,17.0]
[1673901879365,31.78,23.617,23.598,21.46196354]
[1673901881251,31.78,23.617,23.589,20.0]
[1673901881465,31.78,23.617,23.586,117.188]
[1673901881701,20.0,23.599,23.586,117.188]
[1673901881893,31.78,23.617,23.586,117.188]
[1673901882073,31.78,23.617,23.587,20.0]
[1673901882814,31.78,23.617,23.591,17.0]
[1673901889967,31.78,23.617,23.592,20.0]
[1673901890181,31.78,23.617,23.593,17.0]
[1673901890495,31.78,23.617,23.593,48.37074096]
[1673901890919,394.3,23.618,23.594,93.05838254]
[1673901891120,10115.744219,23.6,23.594,93.05838254]
[1673901891336,10055.526619,23.6,23.595,114.64034608]
[1673901891545,10055.526619,23.6,23.596,40.0]
[1673901891767,10055.526619,23.6,23.597,17.0]
[1673901891981,10055.526619,23.6,23.597,101.03397667]
[1673901892191,9935.263519,23.6,23.598,104.03397667]
[1673901892394,9935.263519,23.6,23.599,37.0]
[1673901892609,9889.863719,23.6,23.599,172.40471763]
[1673901893041,9889.863719,23.6,23.599,127.59707605]
[1673901894189,9889.863719,23.6,23.599,172.40471763]
[1673901894825,9889.863719,23.6,23.599,152.40471763]
[1673901895348,9889.863719,23.6,23.599,104.03397667]
[1673901895541,9889.863719,23.6,23.59,16.19]
[1673901896190,9889.863719,23.6,23.591,21.46196354]
[1673901896389,9889.863719,23.6,23.591,92.64878025]
[1673901896725,9889.863719,23.6,23.592,112.64878025]
[1673901896920,9889.863719,23.6,23.593,17.0]
[1673901897134,9889.863719,23.6,23.594,20.0]
[1673901897332,9889.863719,23.6,23.595,17.0]
[1673901897536,9889.863719,23.6,23.595,88.18681671]
[1673901897748,9889.863719,23.6,23.595,68.16767316]
[1673901897957,9869.876219,23.6,23.596,92.64878025]
[1673901898182,9869.876219,23.6,23.596,21.46196354]
[1673901898375,20.0,23.599,23.596,21.46196354]
[1673901898588,9869.876219,23.6,23.596,21.46196354]
[1673901899026,9869.876219,23.6,23.59,16.19]
[1673901899234,9869.876219,23.6,23.591,20.0]
[1673901899445,9869.876219,23.6,23.592,17.0]
[1673901899863,20.0,23.599,23.593,21.46196354]
[1673901900059,9869.876219,23.6,23.594,17.0]
[1673901900509,9869.876219,23.6,23.595,21.46196354]
[1673901900913,9856.471019,23.6,23.595,21.46196354]
[1673901901320,9784.996119,23.6,23.596,49.70570962]
[1673901901536,9784.996119,23.6,23.597,20.0]
[1673901901746,9715.483919,23.6,23.598,20.0]
[1673901901958,9565.483919,23.6,23.599,20.0]
[1673901902168,9537.511019,23.6,23.599,123.28874867]
[1673901902375,9537.511019,23.6,23.599,196.34881441]
[1673901902591,9537.511019,23.6,23.599,176.34881441]
[1673901903011,9537.511019,23.6,23.599,38.46196354]
[1673901904925,9537.511019,23.6,23.599,65.99570241]
[1673901905635,9537.511019,23.6,23.599,143.84745108]
[1673901906691,9537.511019,23.6,23.599,105.02327617]
[1673901907112,9537.511019,23.6,23.599,125.02327617]
[1673901907543,9537.511019,23.6,23.599,163.84745108]
[1673901908591,9537.511019,23.6,23.599,136.31371221]
[1673901909011,9537.511019,23.6,23.599,97.4895373]
[1673901909215,9537.511019,23.6,23.592,38.82417491]
[1673901909431,9537.511019,23.6,23.59,37.65196354]
[1673901910155,9537.511019,23.6,23.591,20.0]
[1673901910581,9537.511019,23.6,23.592,21.46196354]
[1673901910791,20.0,23.599,23.592,21.46196354]
[1673901911020,20.0,23.599,23.593,17.0]
[1673901911432,9537.511019,23.6,23.594,21.46196354]
[1673901911647,9537.511019,23.6,23.593,17.0]
[1673901911846,20.0,23.599,23.591,17.0]
[1673901912371,9537.511019,23.6,23.591,38.46196354]
[1673901912790,20.0,23.599,23.591,21.46196354]
[1673901913007,9537.511019,23.6,23.591,21.46196354]
[1673901913214,20.0,23.599,23.591,21.46196354]
[1673901913637,9537.511019,23.6,23.591,21.46196354]
[1673901913961,9537.511019,23.6,23.592,17.0]
[1673901914276,20.0,23.599,23.593,21.46196354]
[1673901916487,9537.511019,23.6,23.593,21.46196354]
[1673901916692,9537.511019,23.6,23.592,17.0]
[1673901916693,31.8,23.599,23.584,20.0]
[1673901916904,31.8,23.599,23.58,16.35]
[1673901917102,31.8,23.599,23.585,21.46196354]
[1673901917316,20.0,23.598,23.585,21.46196354]
[1673901918255,20.0,23.598,23.586,17.0]
[1673901918460,31.81,23.597,23.58,16.35]
[1673901918881,31.81,23.597,23.581,20.0]
[1673901919203,20.0,23.596,23.581,41.46196354]
[1673901919416,20.0,23.596,23.582,21.46196354]
[1673901920056,20.0,23.594,23.582,21.46196354]
[1673901922347,20.0,23.594,23.58,16.15]
[1673901922667,20.0,23.592,23.57,16.29]
[1673901922886,31.82,23.591,23.57,16.29]
[1673901923097,20.0,23.59,23.577,21.46196354]
[1673901923428,20.0,23.588,23.577,21.46196354]
[1673901923622,20.0,23.588,23.577,1.09506354]
[1673901923835,20.0,23.588,23.578,21.46196354]
[1673901924049,119.4754,23.591,23.58,16.15]
[1673901924463,20.0,23.59,23.58,16.15]
[1673901924774,20.0,23.59,23.58,37.61196354]
[1673901925736,20.0,23.59,23.58,21.46196354]
[1673901925952,20.0,23.59,23.571,20.0]
[1673901926159,119.4754,23.591,23.58,16.29]
[1673901926365,119.4754,23.591,23.581,17.0]
[1673901926679,119.4754,23.591,23.581,21.46196354]
[1673901927083,20.0,23.59,23.581,21.46196354]
[1673901927503,20.0,23.59,23.57,16.29]
[1673901927733,20.0,23.59,23.571,38.46196354]
[1673901928147,20.0,23.59,23.572,21.46196354]
[1673901928343,20.0,23.59,23.573,17.0]
[1673901928761,20.0,23.59,23.574,21.46196354]
[1673901928982,51.82,23.59,23.574,21.46196354]
[1673901929602,51.82,23.59,23.57,16.29]
[1673901929833,17.0,23.589,23.571,41.46196354]
[1673901930046,51.82,23.588,23.571,41.46196354]
[1673901930235,51.82,23.588,23.572,21.46196354]
[1673901932047,20.0,23.586,23.572,21.46196354]
[1673901932239,31.82,23.585,23.572,21.46196354]
[1673901932571,51.82,23.586,23.572,21.46196354]
[1673901932782,20.0,23.586,23.572,21.46196354]
[1673901933728,20.0,23.588,23.573,17.0]
[1673901934123,20.0,23.589,23.574,21.46196354]
[1673901934364,20.0,23.589,23.575,17.0]
[1673901934555,119.4754,23.591,23.575,17.0]
[1673901934768,119.4754,23.591,23.58,16.29]
[1673901935211,119.4754,23.591,23.581,21.46196354]
[1673901936351,119.4754,23.591,23.582,17.0]
[1673901936762,119.4754,23.591,23.583,21.46196354]
[1673901937185,119.4754,23.591,23.584,17.0]
[1673901937409,119.4754,23.591,23.583,21.46196354]
[1673901937733,114.3651,23.595,23.585,21.46196354]
[1673901937941,114.3651,23.595,23.586,17.0]
[1673901938257,114.3651,23.595,23.584,17.0]
[1673901938442,114.3651,23.595,23.587,21.46196354]
[1673901938998,114.3651,23.595,23.587,16.46196354]
[1673901939514,20.0,23.594,23.587,16.46196354]
[1673901939946,20.0,23.594,23.582,17.0]
[1673901940133,20.0,23.594,23.583,21.46196354]
[1673901940984,51.81,23.594,23.58,16.29]
[1673901941292,51.81,23.594,23.581,20.0]
[1673901941506,51.81,23.594,23.581,41.46196354]
[1673901941716,20.0,23.594,23.581,41.46196354]
[1673901942044,20.0,23.594,23.582,21.46196354]
[1673901944231,114.3651,23.595,23.582,21.46196354]
[1673901944444,114.3651,23.595,23.583,17.0]
[1673901944657,114.3651,23.595,23.584,20.0]
[1673901944981,114.3651,23.595,23.585,17.0]
[1673901945173,114.3651,23.595,23.585,38.46196354]
[1673901945386,114.3651,23.595,23.586,21.46196354]
[1673901945615,109.2468,23.599,23.587,17.0]
[1673901945801,20.0,23.598,23.59,16.29]
[1673901946011,20.0,23.598,23.591,20.0]
[1673901946772,109.2468,23.599,23.591,20.0]
[1673901946973,109.2468,23.599,23.591,41.46196354]
[1673901947191,20.0,23.598,23.592,17.0]
[1673901947388,31.79,23.607,23.592,17.0]
[1673901947597,20.0,23.599,23.593,21.46196354]
[1673901947923,20.0,23.599,23.594,17.0]
[1673901948238,20.0,23.599,23.593,21.46196354]
[1673901950337,20.0,23.599,23.58,16.25]
[1673901950547,48.81,23.598,23.58,16.25]
[1673901950750,20.0,23.597,23.58,16.25]
[1673901951077,48.81,23.596,23.58,16.25]
[1673901951293,31.81,23.596,23.58,16.25]
[1673901951803,20.0,23.595,23.581,41.46196354]
[1673901951996,20.0,23.595,23.581,20.0]
[1673901953783,31.81,23.594,23.581,20.0]
[1673901954128,48.81,23.594,23.581,20.0]
[1673901954528,20.0,23.593,23.581,20.0]
[1673901954742,17.0,23.592,23.581,20.0]
[1673901954945,20.0,23.591,23.581,20.0]
[1673901955697,20.0,23.591,23.58,16.25]
[1673901955883,20.0,23.591,23.572,21.46196354]
[1673901955884,48.82,23.59,23.572,21.46196354]
[1673901956099,20.0,23.589,23.57,16.15]
[1673901956327,17.0,23.588,23.571,21.46196354]
[1673901956645,20.0,23.587,23.571,21.46196354]